Cogmind - Beta 17 @@@ ROGUE MODE // 2026.07.09 @ 11:38:52 Player: pinbox Result: Destroyed by BY-83F(R) with Subdweller Laser Performance ------------- Evolutions (0) 0 Regions Visited (2) 400 Robots Destroyed (11) 55 Value Destroyed (347) 347 Prototype IDs (0) 0 Alien Tech Used (0) 0 Bonus (0) 0 TOTAL SCORE: 802 Bonus ------- None Cogmind --------- Core Integrity 0/250 Matter 290/300 Energy 157/200 System Corruption 0% Temperature Cool (6) Movement Rolling (110) Location -10/Subcaves Parts ------- > --- POWER (1) -------- Subdweller Power Source > --- PROPULSION (2) --- Subdweller Monowheel Subdweller Monowheel > --- UTILITY (2) ------ Small Storage Unit Subdweller Optics > --- WEAPON (2) ------- Subdweller Laser Subdweller Beam Cannon > --- INVENTORY (8) ---- Light Ion Engine Scrap Shield Subdweller Laser Subdweller Laser Subdweller Laser Dirty Datajack (20) Peak State ------------ > --- POWER ------------ Subdweller Power Source > --- PROPULSION ------- Subdweller Monowheel Subdweller Monowheel > --- UTILITY ---------- Small Storage Unit Subdweller Optics > --- WEAPON ----------- Subdweller Laser Subdweller Machine Gun > --- INVENTORY -------- Light Ion Engine Scrap Shield Subdweller Laser Subdweller Laser Subdweller Laser Subdweller Beam Cannon Dirty Datajack [Rating: 14] Favorites ----------- Power Light Ion Engine Engine Light Ion Engine Propulsion Light Treads Treads Light Treads Wheel Subdweller Monowheel Utility Small Storage Unit Device Seismic Detector Storage Small Storage Unit Protection Utility Shielding Weapon Assault Rifle Energy Gun Medium Laser Energy Cannon Subdweller Beam Cannon Ballistic Gun Assault Rifle Build | -11 -10 -10 ------- Run | Yrd Mat Sub Slots Evolved . | . . . Power . | . . . Propulsion . | . . . Utility . | . . . Weapon . | . . . Parts Attached 17 | 7 . 10 Power 2 | 1 . 1 Engine 2 | 1 . 1 Core . | . . . Reactor . | . . . Propulsion 4 | 2 . 2 Treads 2 | 2 . . Leg . | . . . Wheel 2 | . . 2 Hover . | . . . Flight . | . . . Utility 5 | 2 . 3 Device 3 | 1 . 2 Storage 1 | 1 . . Processor . | . . . Hackware . | . . . Protection 1 | . . 1 Artifact . | . . . Weapon 6 | 2 . 4 Energy Gun 3 | 1 . 2 Energy Cannon 1 | . . 1 Ballistic Gun 2 | 1 . 1 Ballistic Cannon . | . . . Launcher . | . . . Special Weapon . | . . . Impact Weapon . | . . . Slashing Weapon . | . . . Piercing Weapon . | . . . Special Melee Weapon . | . . . Unidentified Prototypes . | . . . Parts Lost 6 | . . 6 Power 1 | . . 1 Propulsion 2 | . . 2 Utility 1 | . . 1 Weapon 2 | . . 2 Highest Loss Streak 4 | . . 4 To Critical Strikes . | . . . Average Backups 4 | 1 2 5 Power . | . 1 1 Propulsion . | . 1 . Utility . | . . 1 Weapon 1 | . . 1 Tool/Special . | . . . Unused Backups 6 | . . 6 Power 1 | . . 1 Propulsion 1 | . . 1 Utility 1 | . . 1 Weapon 2 | . . 2 Tool/Special 1 | . . 1 Average Slot Usage (%) 92 | . 100 89 Engine 13 | . 14 13 Treads 20 | . 28 16 Wheel 1 | . . 2 Device 10 | . 14 8 Storage 14 | . 14 14 Protection 2 | . . 4 Energy Gun 13 | . 14 13 Ballistic Gun 13 | . 14 13 Peak Build Rating 14 | 7 7 14 Average Rating 7 | 5 7 7 On Entrance 4 | . 7 7 Avg Prop Armor Cover (%) . | . . . Naked Turns . | . . . Heaviest Build 20 | 13 13 20 Greatest Support 40 | 40 40 40 Greatest Overweight (x) 5 | . . 5 Average Overweight (x) . | . . . Largest Inventory Capacity 8 | 8 8 8 Average Capacity 7 | 7 8 8 Most Carried 8 | 2 3 8 Average Carried 4 | 1 2 5 Final Capacity 8 | 8 8 8 Final Carried 7 | 2 3 7 Class Distribution -------------------- 97% | Mutant Dominant Class ---------------- Mutant | -10/Materials Mutant | -10/Subcaves Resources | -11 -10 -10 ----------- Run | Yrd Mat Sub Matter Collected 516 | 282 . 234 Remotely . | . . . Salvage Created 502 | 128 . 374 Parts 24 | 8 . 16 Haulers Intercepted . | . . . Recyclers Shooed . | . . . Parts Field Recycled . | . . . Retrieved Matter . | . . . Parts Self-Destructed 4 | . . 4 Prevented . | . . . Parts Restored . | . . . Kills | -11 -10 -10 ------- Run | Yrd Mat Sub Combat Hostiles Destroyed 8 | . . 8 Guns 7 | . . 7 Cannons 1 | . . 1 Classes Destroyed 4 | 2 . 2 Tunneler 2 | 2 . . Recycler 1 | 1 . . Grunt 1 | . . 1 Subdweller 7 | . . 7 Best Kill Streak 3 | 3 . 2 Combat Bots Only 2 | . . 2 Max Kills in Single Turn 1 | 1 . 1 Gunslinging . | . . . Exploded . | . . . Melee . | . . . Uniques/NPCs Destroyed . | . . . Combat | -11 -10 -10 -------- Run | Yrd Mat Sub Hostile Shots Fired 66 | . . 66 Missed 16 | . . 16 Hits 50 | . . 50 Projectile 50 | . . 50 Critical Strikes 3 | . . 3 Damage Taken 928 | . . 928 Core 261 | . . 261 Absorbed by Shields . | . . . Core Remaining (%) 100 | 100 . . Volleys Fired 51 | 4 . 47 Largest 2 | 2 . 2 Hottest 140 | 70 . 140 Shots Fired 99 | 8 . 91 Gun 98 | 8 . 90 Cannon 1 | . . 1 Launcher . | . . . Special . | . . . Kinetic 49 | 4 . 45 Thermal 50 | 4 . 46 Explosive . | . . . Electromagnetic . | . . . Robot Hit Streak 39 | 2 . 39 Robot Miss Streak 4 | 1 . 4 Penetration Max . | . . . Secondary Targets 1 | . . 1 Max Gunslinging Chain 1 | . . 1 Shots Hit Robots 67 | 6 . 61 Core Hits 21 | 4 . 17 Critical Kills . | . . . Critical Parts Destroyed . | . . . Critical Strikes 3 | . . 3 Burn 2 | . . 2 Destroy 1 | . . 1 Melee Attacks . | . . . Impact . | . . . Slashing . | . . . Piercing . | . . . Sneak Attacks . | . . . Combat Hostiles . | . . . Follow-up Attacks . | . . . Damage Inflicted 995 | 69 . 926 Guns 965 | 69 . 896 Cannons 30 | . . 30 Explosions . | . . . Melee . | . . . Ramming . | . . . Kinetic 491 | 32 . 459 Thermal 504 | 37 . 467 Explosive . | . . . Electromagnetic . | . . . Impact . | . . . Slashing . | . . . Piercing . | . . . Highest Corruption . | . . . Average Corruption . | . . . Corruption Purged . | . . . Corruption Blocked . | . . . Overload Shots . | . . . Overflow Damage . | . . . Projectiles . | . . . Explosions . | . . . Melee . | . . . Knockbacks . | . . . Impact . | . . . Kinetic . | . . . Secondary . | . . . Self-Inflicted Damage . | . . . Shots . | . . . Rammed . | . . . Targets Rammed . | . . . Kicked . | . . . Crushed . | . . . Highest Temperature 18 | 18 . 10 Average Temperature 8 | 8 . 10 Received Heat Transfer 363 | . . 363 Siege Activations . | . . . Martial Activations . | . . . Shielding Activations . | . . . Robots Disrupted . | . . . Combat Hostiles . | . . . Robots Corrupted . | . . . Combat Hostiles . | . . . Parts Fried . | . . . Impact Corruptions . | . . . Robots Melted . | . . . Combat Hostiles . | . . . Parts Melted 2 | 1 . 1 Heat Transferred 1322 | 111 . 1211 Parts Sabotaged . | . . . Parts Stolen . | . . . Parts Stripped . | . . . Power Chain Reactions . | . . . Alert | -11 -10 -10 ------- Run | Yrd Mat Sub Maximum Alert Level . | . . . Low Security (%) 100 | 100 100 . Level 1 . | . . . Level 2 . | . . . Level 3 . | . . . Level 4 . | . . . Level 5 . | . . . High Security . | . . . Max Security . | . . . Peak Influence 10 | 10 5 . Initial . | . . . Average . | 1 . . Influence Increases 50 | 15 5 30 Destroy 0b10 Robot/C 20 | . . 20 Destroy 0b10 Robot/NC 15 | 15 . . Destroy Leader 10 | . . 10 Successful Hack 5 | . 5 . Influence Decreases 50 | 15 5 30 Time Decay 50 | 15 5 30 Squads Dispatched . | . . . Investigation . | . . . Extermination . | . . . Reinforcement . | . . . Assault . | . . . Garrison . | . . . Intercept . | . . . Searches Triggered . | . . . Construction Impeded . | . . . Haulers Reinforced . | . . . Active Scanning Responses . | . . . Cargo Convoy Interrupts . | . . . Stealth | -11 -10 -10 --------- Run | Yrd Mat Sub Distress Signals . | . . . Communications Jammed . | . . . Distress Signals . | . . . Times Spotted 10 | . . 10 Peak Tracking Total 2 | . . 2 Tactical Retreats . | . . . Traps | -11 -10 -10 ------- Run | Yrd Mat Sub Traps Triggered . | . . . Indirectly . | . . . Trap Hack Attempts . | . . . Triggered . | . . . Disarmed . | . . . Reprogrammed . | . . . Reused . | . . . Traps Extracted . | . . . Installed . | . . . Triggered . | . . . Machines | -11 -10 -10 ---------- Run | Yrd Mat Sub Machines Disabled . | . . . Max in Single Turn . | . . . Machines Repaired . | . . . Machines Dismantled . | . . . Machines Sabotaged . | . . . Overloaded Fab Kills . | . . . Hacking | -11 -10 -10 --------- Run | Yrd Mat Sub Machines Accessed 2 | . 2 . Terminals 2 | . 2 . Fabricators . | . . . Repair Stations . | . . . Recycling Units . | . . . Scanalyzers . | . . . Garrison Access . | . . . Total Hacks 4 | . 4 . Successful 1 | . 1 . Failed 3 | . 3 . Catastrophic . | . . . Database Lockouts . | . . . Manual 4 | . 4 . Terminals 4 | . 4 . Fabricators . | . . . Repair Stations . | . . . Recycling Units . | . . . Scanalyzers . | . . . Garrison Access . | . . . Terminal Hacks . | . . . Fabricator Hacks . | . . . Repair Station Hacks . | . . . Recycling Unit Hacks . | . . . Scanalyzer . | . . . Garrison Access Hacks . | . . . Unauthorized Hacks 1 | . 1 . Terminals 1 | . 1 . Botnet 1 | . 1 . Fabricators . | . . . Repair Stations . | . . . Recycling Units . | . . . Scanalyzers . | . . . Garrison Access . | . . . Data Cores Recovered . | . . . Used . | . . . Hacking Detections 2 | . 2 . Full Trace Events . | . . . Feedback Events . | . . . Feedback Blocked . | . . . Robot Schematics Acquired . | . . . Robots Built . | . . . Authchips . | . . . Time . | . . . Total Robot Build Rating . | . . . Part Schematics Acquired . | . . . Parts Built . | . . . Authchips . | . . . Time . | . . . Total Part Build Rating . | . . . Part Studies Acquired . | . . . Parts Repaired . | . . . Time . | . . . Parts Recycled . | . . . Recycled Matter . | . . . Retrieved Matter . | . . . Retrieved Components . | . . . Parts Scanalyzed . | . . . Part Schematics Acquired . | . . . Parts Damaged . | . . . Bothacking | -11 -10 -10 ------------ Run | Yrd Mat Sub Used RIF Installer . | . . . Robots Hacked . | . . . Non-combat . | . . . Combat . | . . . Robot Hacks Applied . | . . . Relay Couplers Released . | . . . Fabnet Peak Effective % . | . . . Robots Rewired . | . . . Allies Hacked . | . . . Hacks Repelled . | . . . Allies | -11 -10 -10 -------- Run | Yrd Mat Sub Total Allies . | . . . Largest Group . | . . . Highest-Rated Group . | . . . Highest-Rated Ally . | . . . Total Orders . | . . . Ally Attacks . | . . . Total Damage . | . . . Kills . | . . . Allies Corrupted . | . . . Allies Melted . | . . . Intel | -11 -10 -10 ------- Run | Yrd Mat Sub Active Infowar (turns) 1214 | 22 558 634 Optics 113 | . . 113 Seismic 1101 | 22 558 521 Robot Analysis Total . | . . . Derelict Logs Recovered 1 | . . 1 Drone Launches . | . . . Drone Recoveries . | . . . Exploration | -11 -10 -10 ------------- Run | Yrd Mat Sub Turns Passed 1768 | 113 558 1097 Spaces Moved 704 | 57 49 598 Core 13 | 1 . 12 Treads 580 | 56 49 475 Legs . | . . . Wheels 111 | . . 111 Hover . | . . . Flight . | . . . Fastest Speed 50 | 50 160 110 Average Speed 152 | 158 160 151 Slowest Speed 300 | 160 160 300 Overloaded Moves . | . . . Propulsion Burnouts . | . . . Robots Hopped . | . . . Potential Cave-ins . | . . . Cave-ins Triggered . | . . . Exploration Rate (%) 20 | 4 12 46 Regions Visited 2 Branch Regions 1 Pre-discovered Areas 1 | . . 1 Known Exits Taken . | . . . Unknown Exits Taken 2 | 1 1 . Scrap Searched 4 | . . 4 Spaces Dug . | . . . Terrain Destroyed . | . . . Melee . | . . . Projectile . | . . . AOE . | . . . Terrain Rammed . | . . . Walls Destroyed . | . . . Machines Disabled . | . . . Actions | -11 -10 -10 --------- Run | Yrd Mat Sub Total 1301 | 69 529 703 Wait 504 | . 480 24 Move 702 | 56 48 598 Hop . | . . . Pick Up 12 | 2 1 9 Fast Attach 11 | 7 . 4 Attach 10 | . . 10 Detach 7 | . . 7 Swap . | . . . Drop 4 | . . 4 Fire 51 | 4 . 47 Melee . | . . . Ram . | . . . Kick . | . . . Crush . | . . . Escape Stasis . | . . . Rewire . | . . . Trap . | . . . Miscellaneous . | . . . Route ------- -11/Scrapyard -10/Materials -10/Subcaves History --------- Turn | Location | Event 44 | -11/Scrapyard | Discovered new exit (range 14) 114 | -11/Scrapyard | Entered Materials 305 | -10/Materials | Build established: Mutant 652 | -10/Materials | Discovered new exit (range 3) 672 | -10/Materials | Entered Subcaves 673 | -10/Subcaves | Approached by a straggling Scientist 1073 | -10/Subcaves | Ambushed by Subdwellers from Twisted Machinery 1537 | -10/Subcaves | Disturbed a concealed Subdweller 1540 | -10/Subcaves | Disturbed a concealed Subdweller 1571 | -10/Subcaves | Core integrity fell below 50% 1599 | -10/Subcaves | Lost 4 parts (1p1n1u1w) 1632 | -10/Subcaves | A swath of the cavern ceiling suddenly collapsed 1680 | -10/Subcaves | Learned location of Zion (-7) 1680 | -10/Subcaves | Met a Zionite searching for "candidates" 1711 | -10/Subcaves | Core integrity fell below 20% 1769 | -10/Subcaves | Destroyed by BY-83F(R) with Subdweller Laser Last Messages --------------- at any moment. For your health and safety might I suggest a trip to Zion?" World map updated: -7/Zion. 01695_ C2-7UB(z) destroyed. 01707_ KL-78E(R) destroyed. 01708_ Acquired 22 matter. 01710_ 7R-JO6(R) destroyed. 01711_ Acquired 2 matter. 01714_ Acquired Sub. Monowheel. 01716_ Sub. Optics shoots sparks and powers down. 01716_ Dropped Broken Sub. Optics. 01717_ Acquired Sub. Optics. 01720_ Acquired 20 matter. 01723_ Subatomizers dissect the Sml. Battery. 01762_ 8I-FLG(R) suffers critical hit (Destroy). 01766_ Sub. Machine Gun destroyed. 01769_ Sub. Monowheel melted. 01769_ 8I-FLG(R) destroyed. Map ----- +----------------------------------------------------+ | ??????????????????????????????????????????????? | | ??????????????????????????????????????????????? | | ??????????????????????????????????????????????? | | ??????????????????????????????????????????????? | | ??????????????????????????????????????????????? | | ??????????????????????????????????????????????? | | ??????????????????????????????????????????????? | | ??????????????????????????????????????????????? | | ??????????????????????????????????????????????? | | ??????????????????????????????????????????????? | | ??????????????????????????????#???????????????? | | ?????????????????????????????? #??????????????? | | ?????????????????????????????# #??????????????? | | ?"""????????????????????????? #??????????????? | | ?""""??????????####?????????? #??????????????? | | ?#""""????????# #?????????? ??????????????? | | ?#"" #??????# ?????????#? ??????????????? | | ?# ###### ??? ??????? ? ???????????????? | | ???? " #?? ? ??? # ???????????????? | | ??????# ""#??# ????# ???????????????? | | ??????## #??## ???## #???????????????? | | ??????# ##??# ??### ##??????????????? | | ???##### ###?? ?## # #??????????????? | | ?### !%%! ## #?? #?# #??????????????? | | ## &%# ##?? ### # ##??????????????? | | # &]& #??? ## @## #??????????????? | | [ ##### ## %* #??????????????? | | ## ## #?# R ^ ##?????????????? | | # ### ### #?????????????? | | ### #?# ###?????????????? | | ##?## #### ##???????????????? | | ????## #?# ##???????????????? | | ?????####?## ## #??????????????? | | ???????????## ## ## ##??????????????? | | ????????????# ^ ## ###???????????????? | | ????????????# ## ## ##?????????????????? | | ????????? #?# ^ #??????????????????? | | ?????? ##?## #??????????????????? | | ??????# #???### #??????????????????? | | ??????## #?????## ## #??????????????????? | | ???????## ## #???????? ##?##??????????????????? | | ????????##?##?????????##??????????????????????? | | ??????????????????????????????????????????????? | | ??????????????????????????????????????????????? | | ??????????????????????????????????????????????? | | ??????????????????????????????????????????????? | | ??????????????????????????????????????????????? | | ??????????????????????????????????????????????? | | ??????????????????????????????????????????????? | | ??????????????????????????????????????????????? | +----------------------------------------------------+ Best States ------------- Heat Dissipation 25 Energy Generation 15 Energy Capacity 200 Matter Stores 300 Matter Capacity 300 Sight Range 21 Terrain Scan Density 10 Utility Shielding 33 Evasion (%) 40 Recoil Reduction 2 Item Schematics ----------------- None Robot Schematics ------------------ None Fabricated ------------ Nothing Repaired ---------- Nothing Studied --------- None Alien Tech Used ----------------- None Achievements -------------- None Challenges ------------ None Game ------ Seed LinearMultireflexTreads Manual? 0 Play Time 00:08:47 Cumulative 36.4 hours Start 2026.07.09 @ 11:30:12 End 2026.07.09 @ 11:38:52 Sessions 1 Manual Loads 0 Difficulty Rogue Special Mode None Game No. 40 Rogue 40 Adventurer 0 Explorer 0 Win Type - Total 1 Types 1/0/0/0/0/0/0/0/0/0 Lore% 36 Gallery% 33 Achievement% 30 Wizard Run 0 Options --------- Layout 1 ASCII 0 Keyboard 1 Movement Numpad Keybinds 1 Fullscreen 2 Font 24/Smallcaps Map View 50x40 Zoom Use 0% Tactical HUD 1 Map Filters NONE Filters NONE Steam 1 RUN: 0cb63db0-31e6-4281-af99-aafa0eace9b2